Cogmind - Beta 11.1 @@@ ROGUE MODE // 2022.06.05 @ 16:34:52 Player: ktur Result: Destroyed self with Grenade Launcher Performance ------------- Evolutions (0) 0 Regions Visited (2) 400 Robots Destroyed (19) 95 Value Destroyed (514) 514 Prototype IDs (2) 40 Alien Tech Used (0) 0 Bonus (0) 0 TOTAL SCORE: 1049 Bonus ------- None Cogmind --------- Core Integrity 0/250 Matter 285/300 Energy 250/250 System Corruption 7% Temperature Cool (0) Movement Treading (240) Ox1 Location -10/Mines Parts ------- > --- POWER (1) -------- Ion Engine > --- PROPULSION (2) --- Light Treads Light Treads > --- UTILITY (2) ------ High-capacity Storage Unit Targeting Computer > --- WEAPON (2) ------- Grenade Launcher > --- INVENTORY (20) --- Ion Engine Light Treads Light Treads Light Treads Light Treads Large Matter Pod (150) Transport Network Coupler Hardened Light Armor Plating Hardened Light Armor Plating Hardened Light Armor Plating Hardened Light Armor Plating EM Pulse Gun EM Pulse Gun Medium Laser Beam Cannon Beam Cannon Grenade Launcher Datajack Mace Peak State ------------ > --- POWER ------------ Ion Engine > --- PROPULSION ------- Light Treads Light Treads > --- UTILITY ---------- High-capacity Storage Unit Targeting Computer > --- WEAPON ----------- Beam Cannon Light Assault Rifle > --- INVENTORY -------- Ion Engine Light Ion Engine Light Treads Light Treads Wheel Wheel Large Storage Unit High-capacity Storage Unit Large Matter Pod Large Matter Pod Structural Scanner Transport Network Coupler Targeting Computer EM Pulse Gun Medium Laser Small Laser Beam Cannon Grenade Launcher Grenade Launcher Datajack [Rating: 9] Favorites ----------- Power Ion Engine Engine Ion Engine Propulsion Light Treads Treads Light Treads Utility Targeting Computer Storage High-capacity Storage Unit Processor Targeting Computer Weapon Light Assault Rifle Energy Gun Small Laser Energy Cannon Beam Cannon Ballistic Gun Light Assault Rifle Launcher Grenade Launcher Build | -11 -10 -10 ------- Run | Scr Mat Min Slots Evolved . | . . . Power . | . . . Propulsion . | . . . Utility . | . . . Weapon . | . . . Parts Attached 16 | 6 6 4 Power 1 | 1 . . Engine 1 | 1 . . Core . | . . . Reactor . | . . . Propulsion 3 | 2 1 . Treads 3 | 2 1 . Leg . | . . . Wheel . | . . . Hover . | . . . Flight . | . . . Utility 5 | 1 3 1 Device . | . . . Storage 3 | 1 2 . Processor 2 | . 1 1 Hackware . | . . . Protection . | . . . Artifact . | . . . Weapon 7 | 2 2 3 Energy Gun 1 | 1 . . Energy Cannon 2 | . 1 1 Ballistic Gun 2 | 1 1 . Ballistic Cannon . | . . . Launcher 2 | . . 2 Special Weapon . | . . . Impact Weapon . | . . . Slashing Weapon . | . . . Piercing Weapon . | . . . Special Melee Weapon . | . . . Unidentified Prototypes . | . . . Parts Lost 2 | . . 2 Power . | . . . Propulsion . | . . . Utility 1 | . . 1 Weapon 1 | . . 1 Highest Loss Streak 1 | . . 1 To Critical Strikes . | . . . Average Slot Usage (%) 99 | . 99 99 Engine 14 | . 14 14 Treads 27 | . 27 28 Storage 14 | . 14 14 Processor 13 | . 13 13 Energy Cannon 13 | . 13 13 Ballistic Gun 13 | . 13 13 Naked Turns . | . . . Heaviest Build 49 | 12 49 49 Greatest Support 40 | 40 40 40 Greatest Overweight (x) 1 | . 1 1 Average Overweight (x) . | . . 1 Largest Inventory Capacity 20 | 8 20 20 Average Capacity 18 | 7 17 20 Most Carried 20 | 6 20 20 Average Carried 17 | 3 17 19 Final Capacity 20 | 8 20 20 Final Carried 20 | 6 20 19 Class Distribution -------------------- 100% | Mutant Dominant Class ---------------- Mutant | -10/Materials Mutant | -10/Mines Resources | -11 -10 -10 ----------- Run | Scr Mat Min Matter Collected 741 | 231 393 117 Remotely . | . . . Salvage Created 840 | . 681 159 Parts 39 | . 33 6 Haulers Intercepted 2 | . 2 . Recyclers Shooed 1 | . 1 . Parts Field Recycled . | . . . Retrieved Matter . | . . . Parts Self-Destructed . | . . . Prevented . | . . . Kills | -11 -10 -10 ------- Run | Scr Mat Min Combat Hostiles Destroyed 25 | . 12 13 Guns 9 | . 3 6 Cannons 12 | . 9 3 AOE 4 | . . 4 Classes Destroyed 6 | . 4 2 Tunneler 1 | . 1 . Hauler 2 | . 2 . Recycler 1 | . 1 . Swarmer 3 | . . 3 Grunt 12 | . 12 . Assembled 10 | . . 10 Best Kill Streak 4 | . 4 3 Combat Bots Only 3 | . 3 3 Max Kills in Single Turn 2 | . 1 2 Gunslinging . | . . . Exploded 2 | . . 2 Melee . | . . . Uniques/NPCs Destroyed . | . . . Combat | -11 -10 -10 -------- Run | Scr Mat Min Damage Taken 797 | . 292 505 Core 266 | . 33 233 Absorbed by Shields . | . . . Regen/Repaired (Parts) 144 | . 144 . Core Remaining (%) 100 | 100 . . Volleys Fired 65 | . 34 31 Largest 2 | . 2 2 Hottest 80 | . 80 80 Shots Fired 125 | . 68 57 Gun 60 | . 34 26 Cannon 60 | . 34 26 Launcher 5 | . . 5 Special . | . . . Kinetic 60 | . 34 26 Thermal 60 | . 34 26 Explosive 5 | . . 5 Electromagnetic . | . . . Robot Hit Streak 11 | . 11 9 Robot Miss Streak 3 | . 3 2 Penetration Max . | . . . Secondary Targets . | . . . Shots Hit Robots 79 | . 43 36 Core Hits 48 | . 24 24 Critical Kills . | . . . Critical Parts Destroyed . | . . . Critical Strikes . | . . . Melee Attacks . | . . . Impact . | . . . Slashing . | . . . Piercing . | . . . Sneak Attacks . | . . . Combat Hostiles . | . . . Follow-up Attacks . | . . . Damage Inflicted 1357 | . 599 758 Guns 252 | . 149 103 Cannons 829 | . 432 397 Explosions 258 | . . 258 Melee . | . . . Ramming 18 | . 18 . Kinetic 252 | . 149 103 Thermal 829 | . 432 397 Explosive 258 | . . 258 Electromagnetic . | . . . Impact . | . . . Slashing . | . . . Piercing . | . . . Highest Corruption 7 | . . 7 Average Corruption 3 | . . 3 Corruption Purged . | . . . Corruption Blocked . | . . . Effects 6 | . . 6 Message Errors 2 | . . 2 Matter Fused 1 | . . 1 Heat Flow Errors 3 | . . 3 Overload Shots . | . . . Overflow Damage 24 | . . 24 Projectiles 11 | . . 11 Explosions 13 | . . 13 Melee . | . . . Knockbacks . | . . . Impact . | . . . Kinetic . | . . . Secondary . | . . . Self-Inflicted Damage 72 | . . 72 Shots 2 | . . 2 Rammed 5 | . 4 1 Targets Rammed 7 | . 6 1 Kicked . | . . . Crushed 2 | . 2 . Highest Temperature 251 | . 179 251 Average Temperature 65 | . 62 68 Received Heat Transfer 205 | . 165 40 Siege Activations . | . . . Robots Corrupted . | . . . Combat Hostiles . | . . . Parts Fried . | . . . Impact Corruptions . | . . . Robots Melted . | . . . Combat Hostiles . | . . . Parts Melted . | . . . Heat Transferred 1739 | . 888 851 Parts Sabotaged . | . . . Parts Stolen . | . . . Parts Stripped . | . . . Power Chain Reactions . | . . . Missiles Intercepted . | . . . Alert | -11 -10 -10 ------- Run | Scr Mat Min Peak Influence 268 | . 268 148 Initial 39 | . . 39 Average 100 | . 120 72 Maximum Alert Level 1 | . 1 . Low Security (%) 82 | 100 72 100 Level 1 17 | . 27 . Level 2 . | . . . Level 3 . | . . . Level 4 . | . . . Level 5 . | . . . High Security . | . . . Max Security . | . . . Squads Dispatched 2 | . 2 . Investigation 2 | . 2 . Extermination . | . . . Reinforcement . | . . . Assault . | . . . Garrison . | . . . Intercept . | . . . Searches Triggered . | . . . Construction Impeded . | . . . Haulers Reinforced . | . . . Active Scanning Responses . | . . . Cargo Convoy Interrupts . | . . . Stealth | -11 -10 -10 --------- Run | Scr Mat Min Distress Signals 2 | . 2 . Communications Jammed . | . . . Distress Signals . | . . . Times Spotted 37 | . 23 14 Peak Tracking Total 5 | . 5 3 Tactical Retreats 2 | . 2 . Traps | -11 -10 -10 ------- Run | Scr Mat Min Traps Triggered . | . . . Indirectly . | . . . Trap Hack Attempts . | . . . Triggered . | . . . Disarmed . | . . . Reprogrammed . | . . . Reused . | . . . Traps Extracted . | . . . Installed . | . . . Triggered . | . . . Machines | -11 -10 -10 ---------- Run | Scr Mat Min Machines Disabled 2 | . 1 1 Max in Single Turn 1 | . 1 1 Machines Sabotaged . | . . . Garrisons Compromised . | . . . Overloaded Fab Kills . | . . . Hacking | -11 -10 -10 --------- Run | Scr Mat Min Machines Accessed 11 | . 11 . Terminals 8 | . 8 . Fabricators . | . . . Repair Stations 1 | . 1 . Recycling Units 2 | . 2 . Scanalyzers . | . . . Garrison Access . | . . . Total Hacks 38 | . 38 . Successful 16 | . 16 . Failed 22 | . 22 . Catastrophic 3 | . 3 . Database Lockouts . | . . . Manual 32 | . 32 . Terminals 30 | . 30 . Fabricators . | . . . Repair Stations 4 | . 4 . Recycling Units 4 | . 4 . Scanalyzers . | . . . Garrison Access . | . . . Terminal Hacks 7 | . 7 . Part Schematic 2 | . 2 . Robot Analysis 2 | . 2 . Prototype ID Bank 2 | . 2 . Hauler Manifests 1 | . 1 . Fabricator Hacks . | . . . Repair Station Hacks 4 | . 4 . Scan Component 2 | . 2 . Repair 2 | . 2 . Recycling Unit Hacks . | . . . Scanalyzer . | . . . Garrison Access Hacks . | . . . Unauthorized Hacks 5 | . 5 . Terminals 3 | . 3 . Botnet 1 | . 1 . Operators 2 | . 2 . Fabricators . | . . . Repair Stations . | . . . Recycling Units 2 | . 2 . Tunnel 2 | . 2 . Scanalyzers . | . . . Garrison Access . | . . . Data Cores Recovered . | . . . Used . | . . . Hacking Detections 9 | . 9 . Full Trace Events . | . . . Feedback Events . | . . . Feedback Blocked . | . . . Robot Schematics Acquired . | . . . Robots Built . | . . . Authchips . | . . . Time . | . . . Total Robot Build Rating . | . . . Part Schematics Acquired 2 | . 2 . Parts Built . | . . . Authchips . | . . . Time . | . . . Total Part Build Rating . | . . . Parts Repaired 2 | . 2 . Time 52 | . 52 . Parts Recycled . | . . . Recycled Matter . | . . . Retrieved Matter . | . . . Retrieved Components . | . . . Parts Scanalyzed . | . . . Part Schematics Acquired . | . . . Parts Damaged . | . . . Bothacking | -11 -10 -10 ------------ Run | Scr Mat Min Used RIF Installer . | . . . Robots Hacked . | . . . Non-combat . | . . . Combat . | . . . Robot Hacks Applied . | . . . Relay Couplers Released . | . . . Fabnet Peak Effective % . | . . . Robots Rewired . | . . . Allies Hacked . | . . . Hacks Repelled . | . . . Allies | -11 -10 -10 -------- Run | Scr Mat Min Total Allies . | . . . Largest Group . | . . . Highest-Rated Group . | . . . Highest-Rated Ally . | . . . Total Orders . | . . . Ally Attacks . | . . . Total Damage . | . . . Kills . | . . . Allies Corrupted . | . . . Allies Melted . | . . . Intel | -11 -10 -10 ------- Run | Scr Mat Min Robot Analysis Total 2 | . 2 . Derelict Logs Recovered 2 | . . 2 Drone Launches . | . . . Drone Recoveries . | . . . Exploration | -11 -10 -10 ------------- Run | Scr Mat Min Turns Passed 2469 | 76 1583 810 Spaces Moved 971 | 45 677 249 Core 9 | 9 . . Treads 962 | 36 677 249 Legs . | . . . Wheels . | . . . Hover . | . . . Flight . | . . . Fastest Speed 50 | 50 160 240 Average Speed 208 | 138 201 240 Slowest Speed 240 | 160 240 240 Overloaded Moves . | . . . Propulsion Burnouts . | . . . Robots Hopped . | . . . Cave-ins Triggered . | . . . Exploration Rate (%) 49 | 5 99 45 Regions Visited 2 Branch Regions 1 Pre-discovered Areas 3 | . 2 1 Known Exits Taken . | . . . Unknown Exits Taken 2 | 1 1 . Scrap Searched . | . . . Spaces Dug 10 | . . 10 Terrain Destroyed 30 | . . 30 Melee . | . . . Projectile . | . . . AOE 30 | . . 30 Terrain Rammed . | . . . Walls Destroyed . | . . . Machines Disabled . | . . . Actions | -11 -10 -10 --------- Run | Scr Mat Min Total 1308 | 56 844 408 Wait 202 | . 79 123 Move 969 | 44 676 249 Hop . | . . . Pick Up 33 | 6 27 . Fast Attach 9 | 6 3 . Attach 2 | . 1 1 Detach 1 | . 1 . Swap 5 | . 2 3 Drop 15 | . 15 . Fire 65 | . 34 31 Melee . | . . . Ram . | . . . Kick . | . . . Crush 7 | . 6 1 Escape Stasis . | . . . Rewire . | . . . Trap . | . . . Miscellaneous . | . . . Route ------- -11/Scrapyard -10/Materials (discovered 4 exits: [*Mat x3] / [*Min]) -10/Mines History --------- Turn | Location | Event 6 | -11/Scrapyard | Discovered new exit (range 15) 77 | -11/Scrapyard | Entered Materials 309 | -10/Materials | Build established: Mutant 328 | -10/Materials | Discovered new exit (range 15) 680 | -10/Materials | Discovered new exit (range 10) 940 | -10/Materials | Discovered new exit (range 5) 1459 | -10/Materials | Discovered new exit (range 7) 1569 | -10/Materials | Repaired Lgt. Treads 1596 | -10/Materials | Repaired Lgt. Assault Rifle 1660 | -10/Materials | Entered Mines 1695 | -10/Mines | Learned location of Storage (-9) 1696 | -10/Mines | Learned Materials emergency access door positions 1699 | -10/Mines | Learned 2 Materials zone layouts 1713 | -10/Mines | Found a hidden stash of uninstalled traps 1714 | -10/Mines | Assembled infested the area 1959 | -10/Mines | Core integrity fell below 50% 2266 | -10/Mines | Core integrity fell below 20% 2470 | -10/Mines | Destroyed self with Grenade Launcher Last Messages --------------- 02053_ Acquired 15 matter. 02088_ System corrupted: Matter fused (-6). 02099_ as-53802 destroyed. 02107_ Acquired 7 matter. 02181_ System corrupted: Heat flow error (+154). 02198_ System corrupted: Heat flow error (+233). 02269_ as-27724 destroyed. 02272_ Acquired 2 matter. 02314_ System corrupted: Heat flow error (+271). 02360_ Slammed into R-06 Scavenger. 02428_ KIU&UF//GIR3SYU&XKB& VC 02444_ T-07 Excavator destroyed. 02447_ as-06757 destroyed. 02452_ Acquired 2 matter. 02465_ Acquired 10 matter. 02466_ as-73234 destroyed. 02467_ Acquired 10 matter. 02468_ Destroyed Asb. Hover Unit. 02468_ Lgt. Assault Rifle destroyed. 02468_ System corrupted by crushing effect (+4). Map ----- +----------------------------------------------------+ | ??????????????????????????????????# &&#???# #? | | ??????????????????????????????????# ##% & #???# #? | | ???????????????????????????# ###### ### &&#???# #? | | ???????????????????????????# #?## #???# ## | | ???????????????????????????######## #??# ##### [ | | ?????????????????????????????###### #??# ## % * | | ?????????????????????????????# #??# % [ | | ?????????????????????????????# ######??# %## " | | ?????????????????????????????# #?????### ## "" | | ?????????????????????????????# #?????# ## " | | ?????????????????????????????# ###???# ## | | ?????????????????????????????# ##??# ######## | | ?????????????????????????????# #??# #?????## | | ??????????????????#####??????# ##?## ##???## | | ??????????????????# #?????# #??## ##### | | ???????????????#### ?????## #???# ## | | ???????????????#% !!! ??????## ##??## | | ???????????????#= !|% ??????## #???# | | ??????????????## *%=!* ???????# #???## | | ????????????%?? !u %%=%=???????# #????## # | | ?????????????! #? !===!?## #### #?????#### ### | | ??????????????? ? ?# #????????#####?? | | ?????????????????# # = ####### ##?????##???????? | | ????????????????# # = =%! ##??# #????## #???????? | | ????????????????# !* ####%#???## ##???###? | | ????????????????# % %!%=a@ % #??## #### ## | | ?????????????????#= *% #### #?## # | | ?????????????????## %= ##??# #?# # | | ??????????????????#|!| ?##???# #?# #? | | ?????????????????%%=%* % ??????# ### """ #?? | | ???????????????!==!#! ## ??????# ## """ #??? | | ?????????????=%=%=#!##?#???????# """ #??? | | ????????????%!%!*=%#???????????# #??? | | ?????????????**?%!%????????????## ##??? | | ?????????????%?%!!??????????????# ####???? | | ??????????????*!%???????????????# ###??????? | | ??????????????|*????????????????## #####????????? | | ?????????????????????????????????####????????????? | | ?????????????????????????????????????????????????? | | ?????????????????????????????????????????????????? | | ?????????????????????????????????????????????????? | | ?????????????????????????????????????????????????? | | | | | | | | | | | | | | | | | +----------------------------------------------------+ Best States ------------- Heat Dissipation 25 Energy Generation 10 Energy Capacity 250 Matter Stores 300 Matter Capacity 300 Sight Range 16 Terrain Scan Density 10 Evasion (%) 40 Targeting Accuracy 5 Recoil Reduction 2 Item Schematics ----------------- Huge Storage Unit | -10/Materials | Hacked Hcp. Storage Unit | -10/Materials | Hacked Robot Schematics ------------------ None Fabricated ------------ Nothing Alien Tech Used ----------------- None Achievements -------------- None Challenges ------------ None Game ------ Seed SensorSubatomicLance Manual? 0 Play Time 00:12:21 Cumulative 464.8 hours Start 2022.06.05 @ 16:24:59 End 2022.06.05 @ 16:34:52 Sessions 1 Manual Loads 0 Difficulty Rogue Special Mode None Game No. 439 Rogue 439 Adventurer 0 Explorer 0 Win Type - Total 22 Types 13/2/4/2/0/0/0/1/0 Lore% 94 Gallery% 92 Achievement% 78 Wizard Run 0 Options --------- ASCII 0 Keyboard 0 Movement Arrows Keybinds 0 Fullscreen 1 Font 18/Smallcaps Map View 76x50 Tactical HUD 1 Map Filters NONE Filters NONE Steam 1 RUN: 48e6b1e4-9054-4109-830d-850d532f8d41